Cogmind - Beta 10.2 --- EXPLORER MODE // 2021.05.26 @ 01:06:24 // Winter2019/RPGLIKE Player: H_ Result: Smashed by cave-in Performance ------------- Evolutions (0) 0 Regions Visited (2) 400 Robots Destroyed (14) 70 Value Destroyed (316) 316 Prototype IDs (3) 60 Alien Tech Used (0) 0 Bonus (0) 0 TOTAL SCORE: 846 Bonus ------- None Cogmind --------- Core Integrity 0/600 Matter 275/300 Energy 125/125 System Corruption 4% Temperature Cool (160) Movement Rolling (80) Location -10/Mines Parts ------- > --- POWER (1) -------- Light Ion Engine > --- PROPULSION (2) --- Wheel Wheel > --- UTILITY (4) ------ Improved Terrain Scanner Seismic Analyzer Targeting Computer > --- WEAPON (2) ------- Mining Laser Plasma Cutter > --- INVENTORY (2) ---- EM Pulse Gun Peak State ------------ > --- POWER ------------ Light Ion Engine > --- PROPULSION ------- Wheel Wheel > --- UTILITY ---------- Improved Terrain Scanner Targeting Computer Targeting Computer Targeting Computer > --- WEAPON ----------- EM Pulse Gun Plasma Cutter > --- INVENTORY -------- Mining Laser [Rating: 11] Favorites ----------- Power Light Ion Engine Engine Light Ion Engine Propulsion Wheel Wheel Wheel Utility Targeting Computer Device Improved Terrain Scanner Processor Targeting Computer Weapon EM Pulse Gun Energy Gun EM Pulse Gun Special Weapon Mining Laser Build | -11 -10 -10 ------- Run | Scr Mat Min Slots Evolved 5 | 5 . . Power . | . . . Propulsion 1 | 1 . . Utility 3 | 3 . . Weapon 1 | 1 . . Parts Attached 18 | 10 5 3 Power 1 | 1 . . Engine 1 | 1 . . Core . | . . . Reactor . | . . . Propulsion 4 | 4 . . Treads . | . . . Leg . | . . . Wheel 4 | 4 . . Hover . | . . . Flight . | . . . Utility 5 | 3 2 . Device 1 | 1 . . Storage . | . . . Processor 4 | 2 2 . Hackware . | . . . Protection . | . . . Artifact . | . . . Weapon 8 | 2 3 3 Energy Gun 2 | 2 . . Energy Cannon . | . . . Ballistic Gun . | . . . Ballistic Cannon . | . . . Launcher . | . . . Special Weapon 6 | . 3 3 Impact Weapon . | . . . Slashing Weapon . | . . . Piercing Weapon . | . . . Special Melee Weapon . | . . . Unidentified Prototypes . | . . . Parts Lost 1 | . . 1 Power . | . . . Propulsion . | . . . Utility 1 | . . 1 Weapon . | . . . Highest Loss Streak 1 | . . 1 Average Slot Usage (%) 96 | . 95 100 Engine 11 | . 11 11 Wheel 22 | . 22 22 Device 11 | . 11 11 Processor 30 | . 28 33 Energy Gun 10 | . 11 6 Special Weapon 11 | . 10 15 Naked Turns . | . . . Heaviest Build 8 | 8 8 7 Greatest Support 36 | 36 30 30 Greatest Overweight (x) . | . . . Average Overweight (x) . | . . . Largest Inventory Capacity 2 | 2 2 2 Average Capacity 1 | 1 2 2 Most Carried 2 | 2 2 1 Average Carried 1 | . 1 1 Final Capacity 2 | 2 2 2 Final Carried 1 | 1 1 1 Class Distribution -------------------- 100% | Hacker-Mutant Dominant Class ---------------- Hacker-Mutant | -10/Materials Hacker-Mutant | -10/Mines Resources | -11 -10 -10 ----------- Run | Scr Mat Min Matter Collected 350 | 294 56 . Remotely . | . . . Salvage Created 445 | 213 173 59 Parts 26 | 15 8 3 Haulers Intercepted . | . . . Recyclers Shooed . | . . . Parts Field Recycled . | . . . Retrieved Matter . | . . . Parts Self-Destructed . | . . . Prevented . | . . . Kills | -11 -10 -10 ------- Run | Scr Mat Min Combat Hostiles Destroyed 10 | . 6 4 Guns 5 | . 3 2 Cannons 3 | . 2 1 AOE 2 | . 1 1 Classes Destroyed 6 | 2 2 2 Tunneler 5 | 5 . . Recycler 1 | 1 . . Swarmer 2 | . 2 . Grunt 4 | . 4 . Demolisher 2 | . . 2 Assembled 2 | . . 2 Best Kill Streak 4 | 4 3 2 Combat Bots Only 3 | . 3 2 Max Kills in Single Turn 1 | 1 1 1 Gunslinging . | . . . Exploded 1 | . 1 1 Melee . | . . . Uniques/NPCs Destroyed . | . . . Combat | -11 -10 -10 -------- Run | Scr Mat Min Damage Taken 909 | . 177 732 Core 740 | . 138 602 Absorbed by Shields . | . . . Redirected to Core 544 | . 110 434 Core Remaining (%) 100 | 100 . . Volleys Fired 81 | 8 28 45 Largest 2 | 2 2 1 Hottest 100 | 80 100 100 Shots Fired 90 | 16 29 45 Gun 34 | 16 8 10 Cannon . | . . . Launcher . | . . . Special 56 | . 21 35 Kinetic . | . . . Thermal 56 | . 21 35 Explosive . | . . . Electromagnetic 34 | 16 8 10 Robot Hit Streak 18 | 11 17 18 Robot Miss Streak 1 | . 1 1 Penetration Max . | . . . Secondary Targets . | . . . Shots Hit Robots 46 | 11 17 18 Core Hits 24 | 7 10 7 Critical Hits 3 | . 2 1 Critical Kills . | . . . Critical Parts Destroyed 3 | . 2 1 Melee Attacks . | . . . Impact . | . . . Slashing . | . . . Piercing . | . . . Sneak Attacks . | . . . Combat Hostiles . | . . . Follow-up Attacks . | . . . Damage Inflicted 781 | 204 362 215 Guns 342 | 168 76 98 Cannons . | . . . Explosions 122 | 36 86 . Melee . | . . . Ramming . | . . . Kinetic . | . . . Thermal 439 | 36 286 117 Explosive . | . . . Electromagnetic 342 | 168 76 98 Impact . | . . . Slashing . | . . . Piercing . | . . . Highest Corruption 2 | . . 2 Average Corruption 2 | . . 2 Corruption Purged . | . . . Effects 3 | . . 3 Heat Flow Errors 1 | . . 1 Data Loss (minor) 1 | . . 1 Targeting Errors 1 | . . 1 Overload Shots . | . . . Overflow Damage 32 | 11 12 9 Projectiles 9 | . . 9 Explosions 23 | 11 12 . Melee . | . . . Knockbacks . | . . . Impact . | . . . Kinetic . | . . . Secondary . | . . . Self-Inflicted Damage 4 | . 4 . Shots 1 | . 1 . Rammed . | . . . Targets Rammed . | . . . Kicked . | . . . Crushed . | . . . Highest Temperature 240 | 90 58 240 Average Temperature 79 | 37 18 113 Received Heat Transfer 288 | . 108 180 Siege Activations . | . . . Robots Corrupted . | . . . Combat Hostiles . | . . . Parts Fried 1 | . . 1 Impact Corruptions . | . . . Robots Melted . | . . . Combat Hostiles . | . . . Parts Melted 2 | . 2 . Heat Transferred 1018 | 50 646 322 Parts Sabotaged . | . . . Parts Stolen . | . . . Parts Stripped . | . . . Power Chain Reactions 2 | 1 1 . Missiles Intercepted . | . . . Alert | -11 -10 -10 ------- Run | Scr Mat Min Peak Influence 197 | 30 197 96 Initial 26 | . 14 26 Average 64 | 14 67 72 Maximum Alert Level . | . . . Low Security (%) 100 | 100 100 100 Level 1 . | . . . Level 2 . | . . . Level 3 . | . . . Level 4 . | . . . Level 5 . | . . . High Security . | . . . Max Security . | . . . Squads Dispatched 2 | . 2 . Investigation 2 | . 2 . Extermination . | . . . Reinforcement . | . . . Assault . | . . . Garrison . | . . . Intercept . | . . . Construction Impeded . | . . . Haulers Reinforced . | . . . Stealth | -11 -10 -10 --------- Run | Scr Mat Min Distress Signals 1 | . 1 . Communications Jammed . | . . . Distress Signals . | . . . Times Spotted 38 | . 20 18 Peak Tracking Total 15 | . 3 15 Tactical Retreats 6 | . 4 2 Traps | -11 -10 -10 ------- Run | Scr Mat Min Traps Triggered 1 | . . 1 Indirectly . | . . . Trap Hack Attempts . | . . . Triggered . | . . . Disarmed . | . . . Reprogrammed . | . . . Reused . | . . . Traps Extracted . | . . . Installed . | . . . Triggered . | . . . Machines | -11 -10 -10 ---------- Run | Scr Mat Min Machines Disabled . | . . . Max in Single Turn . | . . . Machines Sabotaged . | . . . Garrisons Compromised . | . . . Overloaded Fab Kills . | . . . Fab Network Shutdowns . | . . . Hacking | -11 -10 -10 --------- Run | Scr Mat Min Machines Accessed 11 | . 11 . Terminals 8 | . 8 . Fabricators . | . . . Repair Stations 1 | . 1 . Recycling Units 2 | . 2 . Scanalyzers . | . . . Garrison Access . | . . . Total Hacks 48 | . 48 . Successful 43 | . 43 . Failed 5 | . 5 . Catastrophic . | . . . Database Lockouts . | . . . Manual 36 | . 36 . Terminals 42 | . 42 . Fabricators . | . . . Repair Stations 1 | . 1 . Recycling Units 5 | . 5 . Scanalyzers . | . . . Garrison Access . | . . . Terminal Hacks 27 | . 27 . Record 7 | . 7 . Robot Analysis 8 | . 8 . Prototype ID Bank 2 | . 2 . Branch Access Points 1 | . 1 . Terminal Index 1 | . 1 . Recycling Unit Index 1 | . 1 . Unreport Threat 1 | . 1 . Investigation Status 1 | . 1 . Hauler Manifests 1 | . 1 . Registered Components 1 | . 1 . Zone Layout 3 | . 3 . Fabricator Hacks . | . . . Repair Station Hacks . | . . . Recycling Unit Hacks 2 | . 2 . Report Inventory 2 | . 2 . Scanalyzer . | . . . Garrison Access Hacks . | . . . Unauthorized Hacks 14 | . 14 . Terminals 11 | . 11 . Track 2 | . 2 . Botnet 6 | . 6 . Disrupt 2 | . 2 . Operators 1 | . 1 . Fabricators . | . . . Repair Stations 1 | . 1 . Mechanics 1 | . 1 . Recycling Units 2 | . 2 . Tunnel 2 | . 2 . Scanalyzers . | . . . Garrison Access . | . . . Data Cores Recovered . | . . . Used . | . . . Hacking Detections 8 | . 8 . Full Trace Events . | . . . Feedback Events . | . . . Feedback Blocked . | . . . Robot Schematics Acquired . | . . . Robots Built . | . . . Matter . | . . . Time . | . . . Total Robot Build Rating . | . . . Part Schematics Acquired . | . . . Parts Built . | . . . Matter . | . . . Time . | . . . Total Part Build Rating . | . . . Parts Repaired . | . . . Time . | . . . Parts Recycled . | . . . Recycled Matter . | . . . Retrieved Matter . | . . . Retrieved Components . | . . . Parts Scanalyzed . | . . . Part Schematics Acquired . | . . . Parts Damaged . | . . . Bothacking | -11 -10 -10 ------------ Run | Scr Mat Min Used RIF Installer . | . . . Robots Hacked . | . . . Non-combat . | . . . Combat . | . . . Robot Hacks Applied . | . . . Relay Couplers Released . | . . . Robots Rewired . | . . . Allies Hacked . | . . . Hacks Repelled . | . . . Allies | -11 -10 -10 -------- Run | Scr Mat Min Total Allies . | . . . Largest Group . | . . . Highest-Rated Group . | . . . Highest-Rated Ally . | . . . Total Orders . | . . . Ally Attacks . | . . . Total Damage . | . . . Kills . | . . . Allies Corrupted . | . . . Allies Melted . | . . . Intel | -11 -10 -10 ------- Run | Scr Mat Min Robot Analysis Total 8 | . 8 . Derelict Logs Recovered . | . . . Drone Launches . | . . . Drone Recoveries . | . . . Exploration | -11 -10 -10 ------------- Run | Scr Mat Min Turns Passed 998 | 81 649 268 Spaces Moved 824 | 40 666 118 Core 14 | 14 . . Treads . | . . . Legs . | . . . Wheels 810 | 26 666 118 Hover . | . . . Flight . | . . . Fastest Speed 50 | 50 80 80 Average Speed 79 | 74 80 80 Slowest Speed 90 | 90 80 80 Overloaded Moves . | . . . Propulsion Burnouts . | . . . Robots Hopped . | . . . Cave-ins Triggered 1 | . . 1 Exploration Rate (%) 40 | 3 82 37 Regions Visited 2 Branch Regions 1 Pre-discovered Areas 2 | . 2 . Known Exits Taken 2 | 1 1 . Unknown Exits Taken . | . . . Scrap Searched . | . . . Spaces Dug 32 | . 8 24 Terrain Destroyed 35 | 1 10 24 Melee . | . . . Projectile 32 | . 8 24 AOE 3 | 1 2 . Terrain Rammed . | . . . Walls Destroyed . | . . . Machines Disabled . | . . . Actions | -11 -10 -10 --------- Run | Scr Mat Min Total 978 | 74 720 184 Wait 29 | 5 6 18 Move 822 | 39 665 118 Hop . | . . . Pick Up 15 | 10 5 . Fast Attach 1 | 1 . . Attach 9 | 7 2 . Detach . | . . . Swap 8 | 2 3 3 Drop 6 | 2 4 . Fire 81 | 8 28 45 Melee . | . . . Ram . | . . . Kick . | . . . Crush . | . . . Escape Stasis . | . . . Rewire . | . . . Trap . | . . . Miscellaneous 7 | . 7 . Route ------- -11/Scrapyard -10/Materials (discovered 5 exits: *Mat x3 / *Min x2) -10/Mines History --------- Turn | Location | Event 4 | -11/Scrapyard | Upgraded with Propulsion slot (x1) 4 | -11/Scrapyard | Upgraded with Utility slot (x3) 4 | -11/Scrapyard | Upgraded with Weapon slot (x1) 10 | -11/Scrapyard | Identified exit to Materials 10 | -11/Scrapyard | Discovered exit to Materials (range 15) 82 | -11/Scrapyard | Entered Materials 193 | -10/Materials | Identified exit to Mines 293 | -10/Materials | Identified exit to Materials 293 | -10/Materials | Discovered exit to Materials (range 10) 304 | -10/Materials | Build established: Hacker-Mutant 555 | -10/Materials | Discovered exit to Materials (range 10) 662 | -10/Materials | Discovered exit to Materials (range 16) 717 | -10/Materials | Reached level 2 731 | -10/Materials | Entered Mines 751 | -10/Mines | Met a Derelict bent on vengeance 754 | -10/Mines | Assembled infested the area 785 | -10/Mines | Core integrity fell below 50% 834 | -10/Mines | Core integrity fell below 20% 1000 | -10/Mines | Crushed by falling debris 1000 | -10/Mines | Smashed by cave-in Last Messages --------------- 00855_ K-01 Serf collects debris. 00870_ The unstable cave ceiling collapses. 00877_ K-01 Serf collects debris. 00881_ The unstable cave ceiling collapses. 00885_ System corrupted: Mining Laser targeting data glitched. 00885_ K-01 Serf collects debris. 00905_ U-05 Engineer destroyed. 00905_ K-01 Serf collects debris. 00916_ The unstable cave ceiling collapses. 00919_ K-01 Serf collects debris. 00949_ The unstable cave ceiling collapses. 00959_ K-01 Serf collects debris. 00961_ System corrupted: Component data lost. 00962_ K-01 Serf collects debris. 00963_ The unstable cave ceiling collapses. 00965_ K-01 Serf collects debris. 00979_ The unstable cave ceiling collapses. 01000_ Crushed by falling debris. 01000_ Targeting Computer destroyed. 01000_ System corrupted by crushing effect (+2). Map ----- +----------------------------------------------------+ | ???????????????????#???????????##?????#??# # | | ?????????????????????????#????#?#????????### ## | | ??????????? ????#??#??????#????##????#????## ## | | ????????? ??????????????#?#?????###??##?## | | ??????? ??#?#???#?????#???#?#####?##?## | | ??????? ??????#??#?????#?#?#??##???#?## ## | | ???????? ?????##?##??#?????##?#??#?#??###### | | ???????? ?#?#???#?#??#???#??#???###?##?????? | | ???#???? ?#???#????#?#???###??#????##?##?#?? | | ???#????? % ?#??#?####?????#??#??##??##?#??#??? | | ?????????# ???#?#?##########?##?###?#????#???? | | ?????????? ? ? ? ######??##?##???######## | | ??????????# ?####?#?## ;###"#####???##?# | | ??????????# #########; ###???#?#?# | | ?????#???## ## ##?#; % #"##??#?#?# ##### | | ??????#### ###; ######## #??#? | | ????#??## |% ### % #???? | | ??????## #### ##??? | | ???#??#! / #### #### ###???? | | ?????# ## ### " ####??# #?###?? | | ????# #?## / ### # " ######## #?????? | | ????# #??## ### #### #### #?#?#?? | | ????## ????### % ### #??#??? | | ?????#??##?#?## ##? #?##??? | | ?????????#?##?# ;;;;;### #### ##?#???? | | ????????#####?## # ; @ ## #????#??? | | ?????#????##??### #;; ##??#???# | | ???????###?##???# #;;; # # ###??##? | | ??????????##??### ?? | | ????#???#?#?#?#?# = < ?? | | ?????????##?##??## #### # ??? | | ?????????##?####?# #?## ## ??? | | ?????????#####???# # = ## ## ???? | | ??????????#?####??#### ! #### ##?# ???? | | ????????????###??##?## ##?#####??# #???? | | ???????????########?## ?##?????????????? | | ???????????####?#?### ##?#?##??#??????? | | ??????????????#####?# ?##?#??????????? | | ???????????#????##### % ????#???????? | | ?????????????????#### ????#???????? | | ????????????????#?#### ## ?? ?????????? | | ?????????????????????## #### ????????????? | | ???????????????????#?####?#?? ???????????? | | ??????????????????????#?#?? ? ?????????????? | | ????????????????????????????? ? ????????????? | | ????????????????????????????? ????????????????? | | ???????????????????????????????????????????????? | | ???????????????????????????????????????????????? | | ???????????????????????????????????????????????? | | ???????????????????????????????????????????????? | +----------------------------------------------------+ Best States ------------- Heat Dissipation 25 Energy Generation 15 Energy Capacity 125 Matter Stores 300 Matter Capacity 300 Sight Range 16 Robot Scan Range 2 Terrain Scan Range 16 Terrain Scan Density 60 Resistance: KI 35 Resistance: TH 35 Resistance: EX 35 Resistance: EM 35 Resistance: I 35 Resistance: S 35 Resistance: P 35 Evasion (%) 44 Targeting Accuracy 15 Offensive Hacking 30 Defensive Hacking 5 Item Schematics ----------------- None Robot Schematics ------------------ None Fabricated ------------ Nothing Alien Tech Used ----------------- None Achievements -------------- None Challenges ------------ None RPGLIKE | -11 -10 -10 --------- Run | Scr Mat Min Levels Raised 1 | . 1 . XP Earned 8315 | 6000 1565 750 XP Spent 6000 | 6000 . . Upgrades 14 | 14 . . Propulsion Slot 1 | 1 . . Utility Slot 3 | 3 . . Weapon Slot 1 | 1 . . Energy Generation 1 | 1 . . Mass Support 2 | 2 . . Inventory Capacity 2 | 2 . . Sensor Range 1 | 1 . . Hack Attack % 2 | 2 . . Hack Defense % 1 | 1 . . Protomatter Created 67 | . 42 25 Integrity Restored 126 | . 126 . Core 123 | . 123 . Parts 3 | . 3 . Protomatter Decayed 98 | . . 98 Game ------ Seed ThiefMiniExoskeleton Manual? 0 Play Time 00:36:46 Cumulative 89.5 hours Start 2021.05.26 @ 00:24:02 End 2021.05.26 @ 01:06:24 Sessions 1 Manual Loads 0 Difficulty Explorer Special Mode Winter2019/RPGLIKE Game No. 24 Rogue 12 Adventurer 0 Explorer 12 Win Type - Total 1 Types 0/0/1/0/0/0/0/0/0 Lore% 54 Gallery% 67 Achievement% 55 Wizard Run 0 Options --------- ASCII 0 Keyboard 0 Movement Mouse Keybinds 0 Fullscreen 2 Font 24/Proggy Map View 76x50 Tactical HUD 1 Map Filters NONE Filters NONE Steam 1 RUN: b4ea19fe-a50d-4308-82f9-cb85639f2ee3